fUST/lending_fUST_20240821
["ID","MTS","AMOUNT","RATE_DAILY","PERIOD"]
[335417274,1724209788456,245.41374063,0.00013497,2]
[335417275,1724209791478,1902.85686695,0.0001636,2]
[335417277,1724209804067,1669.08020344,0.00013497,2]
[335417282,1724209819274,218.7590501,0.0001636,2]
[335417338,1724209832800,-245.41374063,0.0001983,2]
[335417340,1724209832810,-156.66298998,0.0002,2]
[335417342,1724209832819,-156.66298998,0.0002,2]
[335417344,1724209832829,-15.53773064,0.00023688,2]
[335417346,1724209832839,-1257.72321361,0.00024053,2]
[335417754,1724209837336,161.991277,0.00014247,2]
[335417930,1724209841553,-288.2814247,0.0001983,2]
[335417931,1724209841567,-3332.19467507,0.0001983,2]
[335417932,1724209841577,-10343.5134042,0.00024053,2]
[335417933,1724209841586,-882.99597685,0.00024115,2]
[335417934,1724209841595,-953.53947811,0.00024115,2]
[335417935,1724209841604,-154.62117811,0.00024115,2]
[335417936,1724209841613,-782.718708,0.00024118,2]
[335417937,1724209841624,-259.93028485,0.00024118,2]
[335417938,1724209841633,-160.8404123,0.00024139,2]
[335417939,1724209841642,-200.0,0.00024658,15]
[335417940,1724209841652,-277.68803325,0.00024728,2]
[335417941,1724209841661,-154.8350703,0.00024814,2]
[335417942,1724209841671,-196.2656124,0.00025,2]
[335417943,1724209841680,-154.62117811,0.00025,2]
[335417944,1724209841690,-610.58341511,0.00025,2]
[335417945,1724209841700,-3000.0,0.00025,2]
[335417946,1724209841709,-251.0,0.00028109,2]
[335417947,1724209841718,-500.0,0.00029929,2]
[335417948,1724209841728,-178.72751622,0.0003,5]
[335417949,1724209841737,-153.0,0.00031011,2]
[335417950,1724209841747,-153.0,0.00031011,2]
[335417951,1724209841755,-153.0,0.00031011,2]
[335417952,1724209841765,-153.0,0.00031011,2]
[335417953,1724209841775,-7727.0,0.00032319,2]
[335417954,1724209841785,-151.0,0.00032668,3]
[335417955,1724209841796,-1104.24693091,0.00032876,2]
[335417956,1724209841805,-165.996954,0.0003313,2]
[335417957,1724209841815,-156.21496732,0.00033234,3]
[335417958,1724209841825,-151.0,0.00033834,4]
[335417959,1724209841836,-2000.0,0.00033874,2]
[335417960,1724209841846,-470.01,0.00033885,3]
[335417961,1724209841855,-156.67,0.00033895,3]
[335417962,1724209841865,-508.0220792,0.00033905,4]
[335417963,1724209841875,-47410.48518352,0.00033914,3]
[335418009,1724209849232,218.7590501,0.0001636,2]
[335418010,1724210030112,991.38842768,0.00013971,2]
[335418011,1724210061022,355.8832287,0.00013971,2]
[335418012,1724210063876,343.80582054,0.00013971,2]
[335418013,1724210097244,218.31882624,0.00013971,2]
[335418014,1724210101799,3620.47609977,0.00013971,2]
[335418017,1724210103933,245.41374063,0.00013971,2]
[335418018,1724210134076,245.41374063,0.00013971,2]
[335418019,1724210193831,593.85248213,0.00013971,2]
[335418020,1724210250968,991.38842768,0.00013971,2]
[335418021,1724210255925,245.41374063,0.00013971,2]
[335418022,1724210356944,245.41374063,0.00013971,2]
[335418024,1724210458477,245.26230977,0.00013971,2]
[335418025,1724210468974,991.38842768,0.00013971,2]
[335418026,1724210471466,991.38842768,0.00013971,2]
[335418027,1724210672477,991.38842768,0.00013971,2]
[335418028,1724210745142,-165.996954,0.00014247,2]
[335418029,1724210745163,-991.38842768,0.00016934,2]
[335418030,1724210745184,-154.8350703,0.00019099,2]
[335418031,1724210745205,-19.91430188,0.0002,2]
[335418032,1724210828138,-161.991277,0.00014247,2]
[335418033,1724210828161,-42.62467241,0.00016934,2]
[335418034,1724210844204,-991.38842768,0.00014519,2]
[335418035,1724210844225,-136.7486881,0.0002,2]
[335418036,1724210844246,-259.93028485,0.0002,2]
[335418037,1724210844267,-1672.53487194,0.0002,2]
[335418038,1724210948182,-991.38842768,0.00014519,2]
[335418039,1724210953163,-571.04274247,0.000199,2]
[335418040,1724210954145,-991.11414392,0.000199,2]
[335418072,1724211032014,-186.0675383,0.00019848,2]
[335418074,1724211032025,-280.72210965,0.000199,2]
[335418076,1724211032035,-5251.68093329,0.0001999,2]
[335418078,1724211032045,-156.67,0.0001999,3]
[335418080,1724211032054,-470.01,0.0001999,3]
[335418082,1724211032063,-4602.23150603,0.0002,2]
[335418102,1724211034992,163.93450388,0.00014519,2]
[335418103,1724211035015,151.48342059,0.00014519,2]
[335418104,1724211035037,243.03134909,0.00014519,2]
[335418105,1724211035057,246.4663842,0.00014519,2]
[335418106,1724211035079,186.47276992,0.00014519,2]
[335418124,1724211038102,-120238.55985913,0.0002,2]
[335418126,1724211038111,-1260.81854444,0.0002,2]
[335418127,1724211038121,-154.8494119,0.0002,2]
[335418129,1724211038130,-226.13158555,0.0002,2]
[335418131,1724211038140,-156.66298998,0.0002,2]
[335418132,1724211038158,-10513.28749774,0.0002,2]
[335418133,1724211038170,-287.17173053,0.0002,2]
[335418134,1724211038180,-313.34,0.0002136,3]
[335418135,1724211038190,-1842.87899597,0.00022043,2]
[335418136,1724211038199,-167.885183,0.00022763,2]
[335418137,1724211038209,-251.0,0.00023082,2]
[335418138,1724211038219,-500.0,0.00023525,2]
[335418139,1724211038228,-166.688108,0.00023537,2]
[335418140,1724211038246,-953.53947811,0.00023906,2]
[335418141,1724211038256,-882.99597685,0.00023976,2]
[335418142,1724211038266,-160.8404123,0.00023985,2]
[335418143,1724211038275,-108148.22501012,0.00024,60]
[335418144,1724211038284,-1842.87899597,0.00024186,2]
[335418145,1724211038294,-277.68803325,0.00024442,2]
[335418146,1724211038304,-303.93481736,0.00024497,2]
[335418147,1724211038313,-207.58817234,0.00024497,2]
[335418148,1724211038323,-500.0,0.00024497,2]
[335418149,1724211038332,-500.0,0.00024497,2]
[335418150,1724211038342,-500.0,0.00024497,2]
[335418151,1724211038351,-500.0,0.00024497,2]
[335418152,1724211038361,-185.30118704,0.00024497,2]
[335418153,1724211038371,-500.0,0.00024497,2]
[335418154,1724211038380,-500.0,0.00024497,2]
[335418155,1724211038390,-500.0,0.00024497,2]
[335418156,1724211038400,-17275.34878025,0.00024498,2]
[335418157,1724211038412,-10343.5134042,0.000246,2]
[335418158,1724211038423,-10343.5134042,0.000246,2]
[335418159,1724211038434,-5251.68093329,0.00024627,3]
[335418160,1724211038445,-200.0,0.00024658,15]
[335418161,1724211038455,-154.60575532,0.00024658,2]
[335418162,1724211038464,-782.718708,0.00024688,2]
[335418163,1724211038473,-154.60575532,0.00025,2]
[335418164,1724211038484,-196.2656124,0.00025,2]
[335418165,1724211038494,-3000.0,0.00025,2]
[335418166,1724211038503,-44649.67636262,0.00025,2]
[335418167,1724211038512,-503.79102748,0.00025,2]
[335418168,1724211038521,-503.69053058,0.0002525,2]
[335418169,1724211038531,-165.996954,0.00025405,2]
[335418170,1724211038540,-276.92643235,0.00026,120]
[335418171,1724211038550,-1842.87899597,0.00026329,2]
[335418172,1724211038559,-7458.94652043,0.0002649,2]
[335418173,1724211038568,-1656.45293684,0.0002799,2]
[335418174,1724211038578,-4900.0,0.00028,2]
[335418175,1724211038587,-1842.87899597,0.00028471,2]
[335418176,1724211038596,-14494.84691048,0.000299,2]
[335418177,1724211038606,-178.72751622,0.0003,5]
[335418178,1724211038615,-1842.87899597,0.00030614,2]
[335418179,1724211038624,-153.0,0.00030925,2]
[335418180,1724211038634,-153.0,0.00030925,2]
[335418181,1724211038643,-153.0,0.00030925,2]
[335418182,1724211038653,-153.0,0.00030925,2]
[335418183,1724211038662,-151.0,0.00032722,3]
[335418184,1724211038671,-1842.87899597,0.00032757,2]
[335418185,1724211038681,-156.21496732,0.00033234,3]
[335418186,1724211038691,-5251.68093329,0.00033328,4]
[335418187,1724211038700,-5117.28593988,0.00033458,2]
[335418188,1724211038710,-2000.0,0.00033684,2]
[335418189,1724211038719,-5251.68093329,0.00033754,4]
[335418190,1724211038729,-5906.73,0.00033813,21]
[335418191,1724211038738,-151.0,0.00033861,4]
[335418192,1724211038748,-1104.24693091,0.00033873,2]
[335418193,1724211038758,-5251.68093329,0.00033894,4]
[335418194,1724211038767,-285.3614456,0.00033914,3]
[335418195,1724211038776,-271.66030088,0.00033914,2]
[335418196,1724211038786,-150.0,0.00033924,2]
[335418197,1724211038795,-576.37288049,0.00033973,4]
[335418198,1724211038804,-201.44032986,0.00033973,2]
[335418199,1724211038813,-16991.27763301,0.00034,9]
[335418200,1724211038823,-164992.17219413,0.00034,2]
[335418201,1724211038832,-511.59579658,0.00034146,2]
[335418202,1724211038842,-511.59579654,0.0003423,2]
[335418203,1724211038851,-500.0,0.00034246,21]
[335418204,1724211038861,-500.0,0.00034246,21]
[335418205,1724211038874,-500.0,0.00034246,21]
[335418206,1724211038884,-500.0,0.00034246,21]
[335418207,1724211038895,-500.0,0.00034246,21]
[335418208,1724211038904,-500.0,0.00034246,21]
[335418209,1724211038914,-500.0,0.00034246,21]
[335418210,1724211038924,-466.33,0.00034246,21]
[335418211,1724211038933,-203.916117,0.00034247,2]
[335418212,1724211038943,-511.59579654,0.00034314,2]
[335418213,1724211038953,-511.59579654,0.00034397,2]
[335418214,1724211038963,-511.59579654,0.00034481,2]
[335418215,1724211038972,-511.59579654,0.00034565,2]
[335418216,1724211038981,-166.9509083,0.000348,120]
[335418217,1724211038992,-1842.87899597,0.000349,2]
[335418218,1724211039005,-5251.68093329,0.00034921,4]
[335418219,1724211039015,-73523.5330661,0.00034921,4]
[335418220,1724211039024,-155.627746,0.00034921,7]
[335418221,1724211039035,-150.0,0.00034924,2]
[335418222,1724211039045,-726.29783284,0.0003493,2]
[335418223,1724211039055,-500.0,0.00034931,21]
[335418224,1724211039064,-500.0,0.00034931,21]
[335418225,1724211039074,-500.0,0.00034931,21]
[335418226,1724211039085,-500.0,0.00034931,21]
[335418227,1724211039095,-500.0,0.00034931,21]
[335418228,1724211039105,-501.65090702,0.00034931,21]
[335418229,1724211039115,-500.0,0.00034931,21]
[335418230,1724211039124,-500.0,0.00034931,21]
[335418231,1724211039134,-287.24544687,0.00034931,21]
[335418232,1724211039144,-500.0,0.00034931,21]
[335418233,1724211039155,-500.0,0.00034931,21]
[335418234,1724211039164,-578.39215742,0.00034931,21]
[335418235,1724211039174,-501.93455882,0.00034931,21]
[335418236,1724211039183,-500.0,0.00034931,21]
[335418237,1724211039193,-503.69375386,0.00034931,21]
[335418238,1724211039202,-500.0,0.00034931,21]
[335418239,1724211039212,-517.84041194,0.00034931,21]
[335418240,1724211039222,-515.34627441,0.00034931,21]
[335418241,1724211039231,-500.0,0.00034931,21]
[335418242,1724211039242,-500.0,0.00034931,21]
[335418243,1724211039251,-500.0,0.00034931,21]
[335418244,1724211039262,-500.0,0.00034931,21]
[335418245,1724211039272,-500.0,0.00034931,21]
[335418246,1724211039282,-500.0,0.00034931,21]
[335418247,1724211039294,-501.65682286,0.00034931,21]
[335418248,1724211039304,-500.0,0.00034931,21]
[335418249,1724211039314,-310.40117262,0.00034931,21]
[335418250,1724211039324,-500.0,0.00034931,21]
[335418251,1724211039336,-504.67859511,0.00034931,21]
[335418252,1724211039346,-500.0,0.00034931,21]
[335418253,1724211039356,-500.0,0.00034931,21]
[335418254,1724211039366,-500.0,0.00034931,21]
[335418255,1724211039377,-503.79238625,0.00034931,21]
[335418256,1724211039387,-263.39296317,0.00034931,21]
[335418257,1724211039397,-317.68978065,0.00034931,21]
[335418258,1724211039408,-542.34897526,0.00034931,21]
[335418259,1724211039421,-500.0,0.00034931,21]
[335418260,1724211039432,-500.0,0.00034931,21]
[335418261,1724211039442,-471.4866554,0.00034931,21]
[335418262,1724211039464,-28.5133446,0.00034931,21]
[335418263,1724211039473,-500.0,0.00034931,21]
[335418264,1724211039483,-266.73940147,0.00034931,21]
[335418302,1724211040572,-7727.0,0.00033338,2]
[335418304,1724211040582,-233.26059853,0.00034931,21]
[335418307,1724211040592,-500.0,0.00034931,21]
[335418308,1724211040602,-500.0,0.00034931,21]
[335418309,1724211040611,-500.0,0.00034931,21]
[335418310,1724211040620,-500.0,0.00034931,21]
[335418312,1724211040630,-500.0,0.00034931,21]
[335418314,1724211040639,-500.0,0.00034931,21]
[335418316,1724211040649,-279.62645788,0.00034931,21]
[335418318,1724211040659,-501.77299638,0.00034931,21]
[335418320,1724211040668,-500.0,0.00034931,21]
[335418322,1724211040678,-500.0,0.00034931,21]
[335418324,1724211040687,-500.0,0.00034931,21]
[335418326,1724211040696,-504.80344,0.00034931,21]
[335418328,1724211040706,-500.0,0.00034931,21]
[335418332,1724211040832,-500.0,0.00034931,21]
[335418333,1724211040842,-500.0,0.00034931,21]
[335418334,1724211040852,-500.0,0.00034931,21]
[335418335,1724211040864,-500.0,0.00034931,21]
[335418336,1724211040874,-504.9896369,0.00034931,21]
[335418337,1724211040883,-500.0,0.00034931,21]
[335418338,1724211040893,-500.0,0.00034931,21]
[335418339,1724211040903,-500.0,0.00034931,21]
[335418340,1724211040912,-500.0,0.00034931,21]
[335418341,1724211040921,-500.0,0.00034931,21]
[335418342,1724211040930,-500.0,0.00034931,21]
[335418343,1724211040941,-380.90287265,0.00034931,21]
[335418344,1724211040951,-500.0,0.00034931,21]
[335418345,1724211040960,-500.0,0.00034931,21]
[335418346,1724211040970,-500.0,0.00034931,21]
[335418347,1724211040979,-504.04946946,0.00034931,21]
[335418348,1724211040988,-500.0,0.00034931,21]
[335418349,1724211040997,-500.0,0.00034931,21]
[335418350,1724211041007,-504.34911394,0.00034931,21]
[335418351,1724211041018,-502.3741441,0.00034931,21]
[335418352,1724211041029,-500.0,0.00034931,21]
[335418353,1724211041039,-490.69445818,0.00034931,21]
[335418354,1724211041050,-500.0,0.00034931,21]
[335418355,1724211041059,-500.0,0.00034931,21]
[335418356,1724211041069,-500.0,0.00034931,21]
[335418357,1724211041078,-500.0,0.00034931,21]
[335418358,1724211041090,-500.0,0.00034931,21]
[335418359,1724211041099,-500.0,0.00034931,21]
[335418360,1724211041108,-500.0,0.00034931,21]
[335418361,1724211041117,-500.0,0.00034931,21]
[335418362,1724211041127,-500.0,0.00034931,21]
[335418363,1724211041136,-500.0,0.00034931,21]
[335418364,1724211041146,-500.0,0.00034931,21]
[335418365,1724211041155,-500.0,0.00034931,21]
[335418366,1724211041165,-161.52212397,0.00034931,21]
[335418367,1724211041174,-500.0,0.00034931,21]
[335418368,1724211041183,-500.0,0.00034931,21]
[335418369,1724211041193,-500.0,0.00034931,21]
[335418370,1724211041203,-500.0,0.00034931,21]
[335418371,1724211041212,-600.0,0.00034931,21]
[335418372,1724211041222,-500.0,0.00034931,21]
[335418373,1724211041231,-500.0,0.00034931,21]
[335418374,1724211041241,-500.0,0.00034931,21]
[335418375,1724211041251,-500.0,0.00034931,21]
[335418376,1724211041260,-500.0,0.00034931,21]
[335418377,1724211041270,-500.0,0.00034931,21]
[335418378,1724211041279,-500.0,0.00034931,21]
[335418379,1724211041289,-500.0,0.00034931,21]
[335418380,1724211041298,-500.0,0.00034931,21]
[335418381,1724211041308,-500.0,0.00034931,21]
[335418382,1724211041318,-500.0,0.00034931,21]
[335418383,1724211041327,-500.0,0.00034931,21]
[335418384,1724211041336,-500.0,0.00034931,21]
[335418385,1724211041345,-500.0,0.00034931,21]
[335418386,1724211041355,-166.24925634,0.00034931,21]
[335418387,1724211041364,-500.0,0.00034931,21]
[335418388,1724211041373,-500.0,0.00034931,21]
[335418389,1724211041382,-500.0,0.00034931,21]
[335418390,1724211041392,-500.0,0.00034931,21]
[335418391,1724211041401,-500.0,0.00034931,21]
[335418392,1724211041410,-500.0,0.00034931,21]
[335418393,1724211041420,-500.0,0.00034931,21]
[335418394,1724211041429,-500.0,0.00034931,21]
[335418395,1724211041438,-500.0,0.00034931,21]
[335418396,1724211041448,-625.45582004,0.00034931,21]
[335418397,1724211041457,-500.0,0.00034931,21]
[335418398,1724211041466,-500.0,0.00034931,21]
[335418399,1724211041476,-500.0,0.00034931,21]
[335418400,1724211041486,-500.0,0.00034931,21]
[335418401,1724211041496,-500.0,0.00034931,21]
[335418402,1724211041505,-500.0,0.00034931,21]
[335418403,1724211041515,-507.21324586,0.00034931,21]
[335418404,1724211041524,-502.1978486,0.00034931,21]
[335418405,1724211041533,-214.21807956,0.00034931,21]
[335418406,1724211041542,-500.0,0.00034931,21]
[335418407,1724211041551,-501.88946741,0.00034931,21]
[335418408,1724211041561,-500.0,0.00034931,21]
[335418409,1724211041571,-617.35092105,0.00034931,21]
[335418410,1724211041580,-498.86302463,0.00034931,21]
[335418411,1724211041589,-438.12920939,0.00034931,21]
[335418412,1724211041599,-500.0,0.00034931,21]
[335418413,1724211041609,-538.10414586,0.00034931,21]
[335418414,1724211041618,-500.0,0.00034931,21]
[335418415,1724211041628,-500.0,0.00034931,21]
[335418416,1724211041639,-500.0,0.00034931,21]
[335418417,1724211041648,-500.0,0.00034931,21]
[335418418,1724211041658,-500.0,0.00034931,21]
[335418419,1724211041667,-500.0,0.00034931,21]
[335418420,1724211041676,-500.0,0.00034931,21]
[335418421,1724211041686,-500.0,0.00034931,21]
[335418422,1724211041695,-500.0,0.00034931,21]
[335418423,1724211041706,-500.0,0.00034931,21]
[335418424,1724211041715,-500.0,0.00034931,21]
[335418425,1724211041724,-500.0,0.00034931,21]
[335418426,1724211041733,-500.0,0.00034931,21]
[335418427,1724211041745,-500.0,0.00034931,21]
[335418428,1724211041759,-500.0,0.00034931,21]
[335418429,1724211041768,-500.0,0.00034931,21]
[335418430,1724211041778,-500.0,0.00034931,21]
[335418431,1724211041787,-500.0,0.00034931,21]
[335418432,1724211041796,-541.89810855,0.00034931,21]
[335418433,1724211041805,-502.09127346,0.00034931,21]
[335418434,1724211041816,-500.0,0.00034931,21]
[335418435,1724211041826,-500.0,0.00034931,21]
[335418436,1724211041837,-500.0,0.00034931,21]
[335418437,1724211041848,-440.4619366,0.00034931,21]
[335418438,1724211041859,-500.0,0.00034931,21]
[335418439,1724211041872,-457.05534121,0.00034931,21]
[335418440,1724211041882,-500.0,0.00034931,21]
[335418441,1724211041893,-500.0,0.00034931,21]
[335418442,1724211041903,-500.0,0.00034931,21]
[335418443,1724211041912,-500.0,0.00034931,21]
[335418444,1724211041922,-500.0,0.00034931,21]
[335418445,1724211041932,-502.34238398,0.00034931,21]
[335418446,1724211041943,-500.0,0.00034931,21]
[335418447,1724211041952,-500.0,0.00034931,21]
[335418448,1724211041962,-500.0,0.00034931,21]
[335418449,1724211041970,-500.0,0.00034931,21]
[335418450,1724211041980,-500.0,0.00034931,21]
[335418451,1724211041990,-500.0,0.00034931,21]
[335418452,1724211041999,-500.0,0.00034931,21]
[335418453,1724211042008,-500.0,0.00034931,21]
[335418454,1724211042017,-500.0,0.00034931,21]
[335418455,1724211042027,-500.0,0.00034931,21]
[335418456,1724211042036,-500.0,0.00034931,21]
[335418457,1724211042045,-504.20804215,0.00034931,21]
[335418458,1724211042053,-500.0,0.00034931,21]
[335418459,1724211042063,-500.0,0.00034931,21]
[335418460,1724211042072,-500.0,0.00034931,21]
[335418461,1724211042081,-500.0,0.00034931,21]
[335418462,1724211042090,-500.0,0.00034931,21]
[335418463,1724211042100,-500.0,0.00034931,21]
[335418464,1724211042109,-221.45296608,0.00034931,21]
[335418465,1724211042150,-278.54703392,0.00034931,21]
[335418466,1724211042160,-509.06501879,0.00034931,21]
[335418467,1724211042170,-500.0,0.00034931,21]
[335418468,1724211042180,-500.0,0.00034931,21]
[335418469,1724211042189,-500.0,0.00034931,21]
[335418470,1724211042198,-500.0,0.00034931,21]
[335418471,1724211042207,-500.0,0.00034931,21]
[335418472,1724211042217,-500.0,0.00034931,21]
[335418473,1724211042227,-500.0,0.00034931,21]
[335418474,1724211042237,-500.0,0.00034931,21]
[335418475,1724211042249,-152.13930001,0.00034931,21]
[335418476,1724211042258,-500.0,0.00034931,21]
[335418477,1724211042268,-500.0,0.00034931,21]
[335418478,1724211042277,-500.0,0.00034931,21]
[335418479,1724211042288,-471.8318119,0.00034931,21]
[335418480,1724211042298,-500.0,0.00034931,21]
[335418481,1724211042307,-500.0,0.00034931,21]
[335418482,1724211042319,-504.48359597,0.00034931,21]
[335418483,1724211042329,-501.83736509,0.00034931,21]
[335418484,1724211042343,-500.78522154,0.00034931,21]
[335418485,1724211042352,-500.0,0.00034931,21]
[335418486,1724211042362,-500.0,0.00034931,21]
[335418487,1724211042371,-500.0,0.00034931,21]
[335418488,1724211042380,-500.0,0.00034931,21]
[335418489,1724211042390,-500.0,0.00034931,21]
[335418490,1724211042399,-619.09334655,0.00034931,21]
[335418491,1724211042410,-610.52,0.00034931,21]
[335418492,1724211042421,-610.52,0.00034931,21]
[335418493,1724211042432,-610.52,0.00034931,21]
[335418494,1724211042443,-610.52,0.00034931,21]
[335418495,1724211042454,-610.52,0.00034931,21]
[335418496,1724211042463,-610.52,0.00034931,21]
[335418497,1724211042473,-610.52,0.00034931,21]
[335418498,1724211042483,-610.52,0.00034931,21]
[335418499,1724211042494,-610.52,0.00034931,21]
[335418500,1724211042504,-610.52,0.00034931,21]
[335418501,1724211042513,-610.52,0.00034931,21]
[335418502,1724211042523,-47.41697789,0.00034931,21]
[335418504,1724211042541,-563.10302211,0.00034931,21]
[335418505,1724211042551,-610.52,0.00034931,21]
[335418506,1724211042560,-610.52,0.00034931,21]
[335418507,1724211042570,-500.0,0.00034931,21]
[335418508,1724211042580,-564.70536225,0.00034931,21]
[335418512,1724211043254,-294.1772595,0.00023904,2]
[335418513,1724211043267,-578.93367918,0.00023904,2]
[335418514,1724211043279,-80.42853943,0.00023904,2]
[335418515,1724211043288,-882.99597685,0.00023968,2]
[335418516,1724211043297,-154.62117811,0.00024658,2]
[335418517,1724211043306,-511.59579654,0.00034649,2]
[335418518,1724211043315,-1839.58953761,0.00034921,3]
[335418519,1724211043327,-264.46625028,0.00034921,3]
[335418540,1724211046334,-434.26649374,0.00034921,3]
[335418541,1724211142594,45.85655156,0.00014519,3]
[335418542,1724211142616,151.66713548,0.00014519,3]
[335418543,1724211261004,991.38842768,0.00013971,2]
[335418544,1724211305654,154.76238314,0.00013971,2]
[335418545,1724211408012,11558.08493871,0.00013971,2]
[335418546,1724211413116,619.99169478,0.00013971,2]
[335418547,1724211414783,16249.73771756,0.00013971,2]
[335418548,1724211416373,8859.03477844,0.00013971,2]
[335418549,1724211421155,7026.54626315,0.00013971,2]
[335418550,1724211443433,601.94985179,0.00013971,2]
[335418551,1724211466107,223.97713722,0.00013971,2]
[335418552,1724211466845,1850.58035834,0.00013971,3]
[335418553,1724211467961,903.52529689,0.00013971,2]
[335418554,1724211473354,320.85403484,0.00013971,2]
[335418555,1724211475694,476.70123261,0.00013971,2]
[335418556,1724211479582,1616.39245345,0.00013971,2]
[335418557,1724211481021,570.66719074,0.00013971,2]
[335418558,1724211482455,405.17078703,0.00013971,2]
[335418559,1724211486032,730.21861558,0.00013971,2]
[335418560,1724211488435,2712.87069354,0.00013971,2]
[335418561,1724211491153,157.39666393,0.00013971,2]
[335418562,1724211495743,898.81779354,0.00013971,2]
[335418563,1724211600322,907.09455531,0.00013971,2]
[335418564,1724211945460,-165.649678,0.00014247,2]
[335418565,1724211945482,-161.991277,0.00014247,2]
[335418566,1724211945503,-155.15977941,0.00014519,2]
[335418567,1724211945527,-161.932777,0.00019178,2]
[335418568,1724211945552,-156.66298998,0.0002,2]
[335418569,1724211945573,-865.416016,0.00021,2]
[335418570,1724211945595,-186.0675383,0.00021516,2]
[335418571,1724211945616,-160.8404123,0.00024756,2]
[335418572,1724211945637,-782.718708,0.00024803,2]
[335418573,1724211945657,-174.14054799,0.00024814,2]
[335418574,1724212035350,245.593488,0.00014,2]
[335418575,1724212052095,-782.718708,0.00016934,2]
[335418576,1724212052118,-195.14426525,0.0002,2]
[335418577,1724212052144,-500.0,0.00021412,2]
[335418578,1724212052167,-412.0,0.00024,2]
[335418579,1724212052187,-160.8404123,0.0002469,2]
[335418580,1724212052208,-882.99597685,0.00024728,2]
[335418581,1724212052231,-262.65874668,0.00024756,2]
[335418582,1724212148143,-615.88009994,0.00016969,2]
[335418583,1724212148166,-245.98,0.00016969,2]
[335418584,1724212149069,142.11070006,0.00016968,2]
[335418585,1724212153105,-9523.4296489,0.00016968,2]
[335418586,1724212156099,-160.8404123,0.00022,2]
[335418587,1724212156122,-882.99597685,0.0002217,2]
[335418588,1724212156143,-178.287946,0.00023079,2]
[335418589,1724212156167,-178.287946,0.0002348,2]
[335418590,1724212156195,-178.287946,0.00023881,2]
[335418591,1724212156217,-1917.05087612,0.00024,2]
[335418592,1724212166156,-208.69746394,0.00024,2]
[335418641,1724212232057,-422.024069,0.00024,2]
[335418643,1724212232070,-1080.70078323,0.00024,2]
[335418701,1724212238136,-17321.11540771,0.00024,2]
[335418703,1724212238147,-10513.28749774,0.00024,2]
[335418705,1724212238156,-226.13158555,0.00024,2]
[335418708,1724212238166,-126513.3262371,0.00024,7]
[335418709,1724212238174,-287.17173053,0.00024,2]
[335418711,1724212238184,-1260.81854444,0.00024,2]
[335418713,1724212238194,-1260.81854444,0.00024,2]
[335418715,1724212238203,-178.287946,0.00024282,2]
[335418717,1724212238216,-10343.5134042,0.00024657,2]
[335418719,1724212238226,-954.83868298,0.00024688,2]
[335418721,1724212238236,-277.68803325,0.0002469,2]
[335418723,1724212238246,-309.12575041,0.00024703,2]
[335418725,1724212238256,-154.60575532,0.00025,2]
[335418727,1724212238265,-610.58341511,0.00025,2]
[335418729,1724212238273,-237.2505452,0.00025426,2]
[335418730,1724212238283,-500.0,0.00025872,2]
[335418732,1724212238294,-165.649678,0.00026521,2]
[335418734,1724212238303,-251.0,0.00026611,2]
[335418736,1724212238312,-165.0,0.00027,2]
[335418738,1724212238321,-882.99597685,0.0002909,2]
[335418740,1724212238330,-160.8404123,0.0002909,2]
[335418742,1724212238338,-160.8404123,0.0002909,2]
[335418744,1724212238348,-178.72751622,0.0003,5]
[335418745,1724212238357,-932.38774276,0.00031295,7]